fUSD/lending_fUSD_20250622
["ID","MTS","AMOUNT","RATE_DAILY","PERIOD"]
[366917845,1750571447112,-490.0,0.00019178,2]
[366917846,1750571447122,-490.0,0.00019178,2]
[366917847,1750571447132,-588.0,0.00019178,2]
[366917848,1750571447142,-1487.68,0.00019178,2]
[366917849,1750571447156,-705.09,0.00019178,2]
[366917850,1750571447165,-491.22793244,0.00019178,2]
[366917851,1750571447175,-490.0,0.00019178,2]
[366917852,1750571447185,-490.0,0.00019178,2]
[366917853,1750571447195,-490.0,0.00019178,2]
[366917854,1750571447204,-490.0,0.00019178,2]
[366917855,1750571447214,-490.0,0.00019178,2]
[366917856,1750571447226,-1711.76,0.00019178,2]
[366917857,1750571447236,-955.04,0.00019178,2]
[366917858,1750571447246,-490.0,0.00019178,2]
[366917859,1750571447256,-490.0,0.00019178,2]
[366917860,1750571447265,-1302.42,0.00019178,2]
[366917861,1750571447276,-490.0,0.00019178,2]
[366917862,1750571447286,-958.54,0.00019178,2]
[366917863,1750571447296,-490.0,0.00019178,2]
[366917864,1750571447306,-490.0,0.00019178,2]
[366917865,1750571447316,-1668.78,0.00019178,2]
[366917866,1750571447326,-490.0,0.00019178,2]
[366917867,1750571447335,-490.0,0.00019178,2]
[366917868,1750571447345,-490.0,0.00019178,2]
[366917869,1750571447355,-490.0,0.00019178,2]
[366917870,1750571447364,-1328.23,0.00019178,2]
[366917871,1750571447375,-490.0,0.00019178,2]
[366917872,1750571447385,-1645.41,0.00019178,2]
[366917873,1750571447394,-490.0,0.00019178,2]
[366917874,1750571447404,-1002.51,0.00019178,2]
[366917875,1750571447414,-594.97,0.00019178,2]
[366917876,1750571447424,-490.0,0.00019178,2]
[366917877,1750571447433,-490.0,0.00019178,2]
[366917878,1750571447443,-1818.93,0.00019178,2]
[366917879,1750571447453,-490.0,0.00019178,2]
[366917880,1750571447464,-490.0,0.00019178,2]
[366917881,1750571447474,-490.0,0.00019178,2]
[366917882,1750571447484,-490.99207317,0.00019178,2]
[366917883,1750571447493,-1031.31,0.00019178,2]
[366917884,1750571447503,-5000.0,0.00019178,2]
[366917885,1750571447513,-490.0,0.00019178,2]
[366917886,1750571447522,-1041.5,0.00019178,2]
[366917887,1750571447532,-490.0,0.00019178,2]
[366917888,1750571447542,-731.52,0.00019178,2]
[366917889,1750571447552,-490.0,0.00019178,2]
[366917890,1750571447562,-490.0,0.00019178,2]
[366917891,1750571447572,-490.0,0.00019178,2]
[366917892,1750571447583,-490.0,0.00019178,2]
[366917893,1750571447593,-490.0,0.00019178,2]
[366917894,1750571447603,-151.0,0.00019178,2]
[366917895,1750571447614,-151.0,0.00019178,2]
[366917896,1750571447624,-1986.16,0.00019178,2]
[366917897,1750571447634,-593.18,0.00019178,2]
[366917898,1750571447644,-490.0,0.00019178,2]
[366917899,1750571447654,-490.0,0.00019178,2]
[366917900,1750571447665,-490.0,0.00019178,2]
[366917901,1750571447675,-490.0,0.00019178,2]
[366917902,1750571447685,-2511.45,0.00019178,2]
[366917903,1750571447695,-490.0,0.00019178,2]
[366917904,1750571447705,-490.0,0.00019178,2]
[366917905,1750571447715,-490.0,0.00019178,2]
[366917906,1750571447725,-1589.22,0.00019178,2]
[366917907,1750571447735,-492.47857556,0.00019178,2]
[366917908,1750571447745,-490.0,0.00019178,2]
[366917909,1750571447755,-831.55,0.00019178,2]
[366917910,1750571447764,-490.0,0.00019178,2]
[366917911,1750571447774,-1180.53,0.00019178,2]
[366917912,1750571447784,-490.0,0.00019178,2]
[366917913,1750571447794,-490.0,0.00019178,2]
[366917914,1750571447804,-2035.52,0.00019178,2]
[366917915,1750571447814,-1880.27,0.00019178,2]
[366917916,1750571447824,-1545.23,0.00019178,2]
[366917917,1750571447834,-490.0,0.00019178,2]
[366917918,1750571447844,-490.0,0.00019178,2]
[366917919,1750571447854,-585.42,0.00019178,2]
[366917920,1750571447863,-490.0,0.00019178,2]
[366917921,1750571447874,-490.0,0.00019178,2]
[366917922,1750571447883,-490.0,0.00019178,2]
[366917923,1750571447894,-869.02,0.00019178,2]
[366917924,1750571447904,-483.98342654,0.00019178,2]
[366917925,1750571447914,-490.0,0.00019178,2]
[366917926,1750571447925,-494.09621352,0.00019178,2]
[366917927,1750571448022,-516.09,0.00019178,2]
[366917928,1750571448032,-1835.22,0.00019178,2]
[366917929,1750571448042,-516.09,0.00019178,2]
[366917930,1750571448052,-490.0,0.00019178,2]
[366917931,1750571448062,-1154.94,0.00019178,2]
[366917932,1750571448072,-212.98951787,0.00019178,2]
[366917933,1750571448082,-1320.39,0.00019178,2]
[366917934,1750571448092,-190.627065,0.00019178,2]
[366917935,1750571448102,-490.0,0.00019178,2]
[366917936,1750571448112,-490.0,0.00019178,2]
[366917937,1750571448122,-490.0,0.00019178,2]
[366917938,1750571448132,-504.1,0.00019178,2]
[366917939,1750571448142,-490.0,0.00019178,2]
[366917940,1750571448155,-490.0,0.00019178,2]
[366917941,1750571448165,-2739.26,0.00019178,2]
[366917942,1750571448175,-494.41323582,0.00019178,2]
[366917943,1750571448185,-490.0,0.00019178,2]
[366917944,1750571448195,-848.33,0.00019178,2]
[366917945,1750571448205,-490.0,0.00019178,2]
[366917946,1750571448215,-490.0,0.00019178,2]
[366917947,1750571448225,-1332.99,0.00019178,2]
[366917948,1750571448236,-1746.86,0.00019178,2]
[366917949,1750571448246,-490.0,0.00019178,2]
[366917950,1750571448257,-1183.05,0.00019178,2]
[366917951,1750571448267,-490.0,0.00019178,2]
[366917952,1750571448277,-490.0,0.00019178,2]
[366917953,1750571448287,-490.0,0.00019178,2]
[366917954,1750571448297,-491.61080465,0.00019178,2]
[366917955,1750571448307,-490.0,0.00019178,2]
[366917956,1750571448316,-490.0,0.00019178,2]
[366917957,1750571448326,-718.17,0.00019178,2]
[366917958,1750571448335,-543.35475787,0.00019178,2]
[366917959,1750571448344,-652.49,0.00019178,2]
[366917960,1750571448354,-1315.43,0.00019178,2]
[366917961,1750571448363,-490.0,0.00019178,2]
[366917962,1750571448373,-490.0,0.00019178,2]
[366917963,1750571448383,-490.0,0.00019178,2]
[366917964,1750571448392,-2923.11,0.00019178,2]
[366917965,1750571448401,-492.75345554,0.00019178,2]
[366917966,1750571448411,-490.0,0.00019178,2]
[366917967,1750571448421,-490.0,0.00019178,2]
[366917968,1750571448431,-742.99,0.00019178,2]
[366917969,1750571448441,-742.99,0.00019178,2]
[366917970,1750571448451,-742.99,0.00019178,2]
[366917971,1750571448462,-490.0,0.00019178,2]
[366917972,1750571448472,-1917.68,0.00019178,2]
[366917973,1750571448482,-742.99,0.00019178,2]
[366917974,1750571448493,-742.99,0.00019178,2]
[366917975,1750571448503,-742.99,0.00019178,2]
[366917976,1750571448513,-490.0,0.00019178,2]
[366917977,1750571448522,-742.99,0.00019178,2]
[366917978,1750571448532,-490.0,0.00019178,2]
[366917979,1750571448542,-490.0,0.00019178,2]
[366917980,1750571448552,-490.0,0.00019178,2]
[366917981,1750571448562,-490.0,0.00019178,2]
[366917982,1750571448573,-490.0,0.00019178,2]
[366917983,1750571448583,-179.85036739,0.00019178,2]
[366917984,1750571448593,-616.18,0.00019178,2]
[366917985,1750571448603,-1226.83,0.00019178,2]
[366917986,1750571448613,-490.0,0.00019178,2]
[366917987,1750571448622,-490.0,0.00019178,2]
[366917988,1750571448632,-1298.75,0.00019178,2]
[366917989,1750571448642,-151.0,0.00019178,2]
[366917990,1750571448652,-153.164691,0.00019178,2]
[366917991,1750571448662,-349.34668907,0.00019178,2]
[366917992,1750571448672,-501.01695088,0.00019178,2]
[366917993,1750571448682,-490.0,0.00019178,2]
[366917994,1750571448691,-490.0,0.00019178,2]
[366917995,1750571448701,-490.0,0.00019178,2]
[366917996,1750571448710,-490.0,0.00019178,2]
[366917997,1750571448719,-490.0,0.00019178,2]
[366917998,1750571448738,-490.0,0.00019178,2]
[366917999,1750571448754,-493.11115985,0.00019178,2]
[366918000,1750571448763,-490.0,0.00019178,2]
[366918001,1750571448774,-490.0,0.00019178,2]
[366918002,1750571448784,-490.0,0.00019178,2]
[366918003,1750571448794,-490.0,0.00019178,2]
[366918004,1750571448805,-2019.51,0.00019178,2]
[366918005,1750571448814,-490.0,0.00019178,2]
[366918006,1750571448824,-490.0,0.00019178,2]
[366918007,1750571448833,-698.97,0.00019178,2]
[366918008,1750571448843,-490.0,0.00019178,2]
[366918009,1750571448853,-490.0,0.00019178,2]
[366918010,1750571448863,-490.0,0.00019178,2]
[366918011,1750571448873,-781.43,0.00019178,2]
[366918012,1750571448883,-1036.93,0.00019178,2]
[366918013,1750571448893,-490.0,0.00019178,2]
[366918014,1750571448903,-490.0,0.00019178,2]
[366918015,1750571448914,-2417.23,0.00019178,2]
[366918016,1750571448924,-500.0,0.00019178,2]
[366918017,1750571448934,-490.0,0.00019178,2]
[366918018,1750571448944,-500.0,0.00019178,2]
[366918019,1750571448954,-500.0,0.00019178,2]
[366918020,1750571448964,-490.0,0.00019178,2]
[366918021,1750571448974,-500.0,0.00019178,2]
[366918022,1750571448984,-500.0,0.00019178,2]
[366918023,1750571448994,-500.0,0.00019178,2]
[366918024,1750571449003,-500.0,0.00019178,2]
[366918025,1750571449014,-3872.17,0.00019178,2]
[366918026,1750571449023,-500.0,0.00019178,2]
[366918027,1750571449033,-490.0,0.00019178,2]
[366918028,1750571449043,-150.0,0.00019178,2]
[366918029,1750571449052,-490.0,0.00019178,2]
[366918030,1750571449063,-490.0,0.00019178,2]
[366918031,1750571449072,-939.87,0.00019178,2]
[366918032,1750571449082,-150.0,0.00019178,2]
[366918033,1750571449092,-490.0,0.00019178,2]
[366918034,1750571449102,-490.0,0.00019178,2]
[366918035,1750571449112,-1727.87,0.00019178,2]
[366918036,1750571449122,-490.0,0.00019178,2]
[366918037,1750571449131,-150.0,0.00019178,2]
[366918038,1750571449143,-490.0,0.00019178,2]
[366918039,1750571449159,-490.0,0.00019178,2]
[366918040,1750571449170,-1850.38,0.00019178,2]
[366918041,1750571449180,-150.25596067,0.00019178,2]
[366918042,1750571449191,-1687.03,0.00019178,2]
[366918043,1750571449201,-490.0,0.00019178,2]
[366918044,1750571449211,-156.97330466,0.00019178,2]
[366918045,1750571449221,-490.0,0.00019178,2]
[366918046,1750571449235,-490.0,0.00019178,2]
[366918047,1750571449246,-150.0,0.00019178,2]
[366918048,1750571449256,-490.0,0.00019178,2]
[366918049,1750571449266,-151.0,0.00019178,2]
[366918050,1750571449276,-150.0,0.00019178,2]
[366918051,1750571449286,-151.0,0.00019178,2]
[366918052,1750571449296,-490.0,0.00019178,2]
[366918053,1750571449305,-490.0,0.00019178,2]
[366918054,1750571449315,-490.0,0.00019178,2]
[366918055,1750571449326,-591.74,0.00019178,2]
[366918056,1750571449335,-490.0,0.00019178,2]
[366918057,1750571449345,-151.98875266,0.00019178,2]
[366918058,1750571449355,-150.0,0.00019178,2]
[366918059,1750571449365,-490.0,0.00019178,2]
[366918060,1750571449374,-490.0,0.00019178,2]
[366918061,1750571449385,-150.0,0.00019178,2]
[366918062,1750571449394,-490.0,0.00019178,2]
[366918063,1750571449404,-490.0,0.00019178,2]
[366918064,1750571449414,-154.337416,0.00019178,2]
[366918065,1750571449424,-607.98,0.00019178,2]
[366918066,1750571449434,-1979.49,0.00019178,2]
[366918067,1750571449443,-490.0,0.00019178,2]
[366918068,1750571449453,-977.31,0.00019178,2]
[366918069,1750571449463,-1000.0,0.00019178,2]
[366918070,1750571449473,-492.5442619,0.00019178,2]
[366918071,1750571449483,-490.0,0.00019178,2]
[366918072,1750571449493,-1502.88,0.00019178,2]
[366918073,1750571449503,-490.0,0.00019178,2]
[366918074,1750571449516,-150.0,0.00019178,2]
[366918075,1750571449528,-861.23,0.00019178,2]
[366918076,1750571449538,-491.85684545,0.00019178,2]
[366918077,1750571449548,-490.0,0.00019178,2]
[366918078,1750571449558,-552.25,0.00019178,2]
[366918079,1750571449568,-490.0,0.00019178,2]
[366918080,1750571449578,-490.0,0.00019178,2]
[366918081,1750571449588,-490.0,0.00019178,2]
[366918082,1750571449597,-490.0,0.00019178,2]
[366918083,1750571449607,-151.0,0.00019178,2]
[366918084,1750571449617,-151.0,0.00019178,2]
[366918085,1750571449627,-490.0,0.00019178,2]
[366918086,1750571449636,-490.0,0.00019178,2]
[366918087,1750571449646,-927.97,0.00019178,2]
[366918088,1750571449655,-490.0,0.00019178,2]
[366918089,1750571449665,-2019.69,0.00019178,2]
[366918090,1750571449675,-1038.9,0.00019178,2]
[366918091,1750571449685,-490.0,0.00019178,2]
[366918092,1750571449694,-490.0,0.00019178,2]
[366918093,1750571449704,-903.33,0.00019178,2]
[366918094,1750571449713,-151.0,0.00019178,2]
[366918095,1750571449722,-151.882356,0.00019178,2]
[366918096,1750571449732,-243.93026584,0.00019178,2]
[366918097,1750571449742,-494.82736737,0.00019178,2]
[366918098,1750571449751,-490.0,0.00019178,2]
[366918099,1750571449761,-490.0,0.00019178,2]
[366918100,1750571449771,-490.0,0.00019178,2]
[366918101,1750571449780,-300.108872,0.00019178,2]
[366918102,1750571449791,-185.99887189,0.00019178,2]
[366918103,1750571449800,-490.0,0.00019178,2]
[366918104,1750571449809,-1717.79,0.00019178,2]
[366918105,1750571449819,-1467.7,0.00019178,2]
[366918106,1750571449828,-490.0,0.00019178,2]
[366918107,1750571449839,-490.0,0.00019178,2]
[366918108,1750571449848,-961.9,0.00019178,2]
[366918109,1750571449858,-961.9,0.00019178,2]
[366918110,1750571449867,-287.76551582,0.00019178,2]
[366918111,1750571449877,-2179.544178,0.00019178,2]
[366918112,1750571449886,-2960.04,0.00019178,2]
[366918113,1750571449896,-490.0,0.00019178,2]
[366918114,1750571449906,-2906.81,0.00019178,2]
[366918115,1750571449916,-490.0,0.00019178,2]
[366918116,1750571449926,-490.0,0.00019178,2]
[366918117,1750571449936,-490.0,0.00019178,2]
[366918118,1750571449946,-490.0,0.00019178,2]
[366918119,1750571449956,-493.9088487,0.00019178,2]
[366918120,1750571449966,-2179.544178,0.00019178,2]
[366918121,1750571449976,-1063.21,0.00019178,2]
[366918122,1750571449985,-1371.46,0.00019178,2]
[366918123,1750571449995,-1070.18,0.00019178,2]
[366918124,1750571450005,-151.0,0.00019178,2]
[366918125,1750571450015,-151.0,0.00019178,2]
[366918126,1750571450025,-697.02,0.00019178,2]
[366918127,1750571450036,-490.0,0.00019178,2]
[366918128,1750571450046,-2008.83,0.00019178,2]
[366918129,1750571450056,-490.0,0.00019178,2]
[366918130,1750571450067,-490.0,0.00019178,2]
[366918131,1750571450078,-151.0,0.00019178,2]
[366918132,1750571450090,-2093.54,0.00019178,2]
[366918133,1750571450100,-241.914195,0.00019178,2]
[366918134,1750571450109,-213.00390354,0.00019178,2]
[366918135,1750571450119,-490.0,0.00019178,2]
[366918136,1750571450129,-490.0,0.00019178,2]
[366918137,1750571450138,-490.0,0.00019178,2]
[366918138,1750571450149,-490.0,0.00019178,2]
[366918139,1750571450160,-925.46,0.00019178,2]
[366918140,1750571450169,-625.29,0.00019178,2]
[366918141,1750571450179,-490.0,0.00019178,2]
[366918142,1750571450188,-1197.9,0.00019178,2]
[366918143,1750571450199,-200.0,0.00019178,2]
[366918144,1750571450209,-500.0,0.00019178,2]
[366918145,1750571450219,-500.0,0.00019178,2]
[366918146,1750571450231,-500.0,0.00019178,2]
[366918147,1750571450242,-500.0,0.00019178,2]
[366918148,1750571450251,-500.0,0.00019178,2]
[366918149,1750571450262,-490.0,0.00019178,2]
[366918150,1750571450271,-490.0,0.00019178,2]
[366918151,1750571450281,-500.0,0.00019178,2]
[366918152,1750571450291,-500.0,0.00019178,2]
[366918153,1750571450300,-580.0,0.00019178,2]
[366918154,1750571450310,-561.25944548,0.00019178,2]
[366918155,1750571450321,-490.0,0.00019178,2]
[366918156,1750571450330,-490.0,0.00019178,2]
[366918157,1750571450340,-563.18,0.00019178,2]
[366918158,1750571450349,-2285.45,0.00019178,2]
[366918159,1750571450359,-490.0,0.00019178,2]
[366918160,1750571450369,-151.0,0.00019178,2]
[366918161,1750571450379,-151.0,0.00019178,2]
[366918162,1750571450390,-490.0,0.00019178,2]
[366918163,1750571450399,-151.0,0.00019178,2]
[366918164,1750571450409,-1657.41,0.00019178,2]
[366918165,1750571450419,-490.0,0.00019178,2]
[366918166,1750571450429,-550.02,0.00019178,2]
[366918167,1750571450439,-490.0,0.00019178,2]
[366918168,1750571450448,-490.0,0.00019178,2]
[366918169,1750571450458,-490.0,0.00019178,2]
[366918170,1750571450467,-610.36,0.00019178,2]
[366918171,1750571450477,-490.0,0.00019178,2]
[366918172,1750571450487,-490.0,0.00019178,2]
[366918173,1750571450496,-494.90961256,0.00019178,2]
[366918174,1750571450505,-770.23,0.00019178,2]
[366918175,1750571450515,-155.09986576,0.00019178,2]
[366918176,1750571450525,-2053.61,0.00019178,2]
[366918177,1750571450535,-435.29521589,0.00019178,2]
[366918178,1750571450544,-490.0,0.00019178,2]
[366918179,1750571450554,-490.0,0.00019178,2]
[366918180,1750571450564,-490.0,0.00019178,2]
[366918181,1750571450574,-490.0,0.00019178,2]
[366918182,1750571450583,-490.0,0.00019178,2]
[366918183,1750571450593,-490.0,0.00019178,2]
[366918184,1750571450602,-490.0,0.00019178,2]
[366918185,1750571450612,-151.0,0.00019178,2]
[366918186,1750571450622,-1455.97,0.00019178,2]
[366918187,1750571450631,-490.0,0.00019178,2]
[366918188,1750571450641,-151.0,0.00019178,2]
[366918189,1750571450651,-490.0,0.00019178,2]
[366918190,1750571450661,-921.23,0.00019178,2]
[366918191,1750571450671,-490.0,0.00019178,2]
[366918192,1750571450681,-1433.62,0.00019178,2]
[366918193,1750571450691,-490.0,0.00019178,2]
[366918194,1750571450700,-490.0,0.00019178,2]
[366918195,1750571450710,-490.0,0.00019178,2]
[366918196,1750571450720,-328.9588174,0.00019178,2]
[366918197,1750571450731,-490.0,0.00019178,2]
[366918198,1750571450740,-490.0,0.00019178,2]
[366918199,1750571450748,-151.0,0.00019178,2]
[366918200,1750571450756,-298.851782,0.00019178,2]
[366918201,1750571450764,-491.41933267,0.00019178,2]
[366918202,1750571450773,-490.0,0.00019178,2]
[366918203,1750571450781,-490.0,0.00019178,2]
[366918204,1750571450788,-490.0,0.00019178,2]
[366918205,1750571450796,-561.55,0.00019178,2]
[366918206,1750571450807,-2200.74,0.00019178,2]
[366918207,1750571450817,-585.54,0.00019178,2]
[366918208,1750571450828,-490.0,0.00019178,2]
[366918209,1750571450838,-580.6,0.00019178,2]
[366918210,1750571450848,-494.27125719,0.00019178,2]
[366918211,1750571450858,-490.0,0.00019178,2]
[366918212,1750571450868,-490.0,0.00019178,2]
[366918213,1750571450877,-490.0,0.00019178,2]
[366918214,1750571450887,-495.39646925,0.00019178,2]
[366918215,1750571450896,-490.0,0.00019178,2]
[366918216,1750571450906,-490.0,0.00019178,2]
[366918217,1750571450921,-491.46629006,0.00019178,2]
[366918218,1750571450932,-2368.28,0.00019178,2]
[366918219,1750571450941,-853.74,0.00019178,2]
[366918220,1750571450952,-1198.52,0.00019178,2]
[366918221,1750571450962,-825.24,0.00019178,2]
[366918222,1750571450972,-490.0,0.00019178,2]
[366918223,1750571450982,-490.0,0.00019178,2]
[366918224,1750571450991,-493.86009671,0.00019178,2]
[366918225,1750571451001,-490.0,0.00019178,2]
[366918226,1750571451011,-490.0,0.00019178,2]
[366918227,1750571451021,-490.0,0.00019178,2]
[366918228,1750571451031,-490.0,0.00019178,2]
[366918229,1750571451041,-1251.57,0.00019178,2]
[366918230,1750571451051,-490.0,0.00019178,2]
[366918231,1750571451061,-490.0,0.00019178,2]
[366918232,1750571451071,-490.0,0.00019178,2]
[366918233,1750571451080,-490.0,0.00019178,2]
[366918234,1750571451090,-738.0,0.00019178,2]
[366918235,1750571451100,-1074.63,0.00019178,2]
[366918236,1750571451110,-490.0,0.00019178,2]
[366918237,1750571451119,-490.0,0.00019178,2]
[366918238,1750571451130,-1815.85,0.00019178,2]
[366918239,1750571451140,-659.65,0.00019178,2]
[366918240,1750571451151,-1859.54,0.00019178,2]
[366918241,1750571451162,-490.0,0.00019178,2]
[366918242,1750571451172,-490.0,0.00019178,2]
[366918243,1750571451182,-490.0,0.00019178,2]
[366918244,1750571451193,-490.0,0.00019178,2]
[366918245,1750571451203,-151.0,0.00019178,2]
[366918246,1750571451214,-154.223574,0.00019178,2]
[366918247,1750571451226,-555.53,0.00019178,2]
[366918248,1750571451236,-490.0,0.00019178,2]
[366918249,1750571451246,-490.0,0.00019178,2]
[366918250,1750571451256,-490.0,0.00019178,2]
[366918251,1750571451266,-490.0,0.00019178,2]
[366918252,1750571451276,-482.83053384,0.00019178,2]
[366918253,1750571451286,-491.43126154,0.00019178,2]
[366918254,1750571451296,-490.0,0.00019178,2]
[366918255,1750571451309,-490.0,0.00019178,2]
[366918256,1750571451319,-490.0,0.00019178,2]
[366918257,1750571451328,-490.0,0.00019178,2]
[366918258,1750571451338,-490.0,0.00019178,2]
[366918259,1750571451347,-2770.58,0.00019178,2]
[366918260,1750571451358,-490.0,0.00019178,2]
[366918261,1750571451367,-490.0,0.00019178,2]
[366918262,1750571451377,-490.0,0.00019178,2]
[366918263,1750571451387,-2710.92,0.00019178,2]
[366918264,1750571451397,-490.0,0.00019178,2]
[366918265,1750571451406,-490.0,0.00019178,2]
[366918266,1750571451417,-490.0,0.00019178,2]
[366918267,1750571451427,-490.0,0.00019178,2]
[366918268,1750571451439,-490.0,0.00019178,2]
[366918269,1750571451450,-880.45,0.00019178,2]
[366918270,1750571451460,-490.0,0.00019178,2]
[366918271,1750571451470,-304.70166658,0.00019178,2]
[366918272,1750571451481,-1022.06,0.00019178,2]
[366918273,1750571451491,-494.52401321,0.00019178,2]
[366918274,1750571451502,-490.0,0.00019178,2]
[366918275,1750571451513,-490.0,0.00019178,2]
[366918276,1750571451523,-490.0,0.00019178,2]
[366918277,1750571451534,-490.0,0.00019178,2]
[366918278,1750571451545,-490.0,0.00019178,2]
[366918279,1750571451556,-490.0,0.00019178,2]
[366918280,1750571451567,-490.0,0.00019178,2]
[366918281,1750571451578,-490.0,0.00019178,2]
[366918282,1750571451588,-552.98944465,0.00019178,2]
[366918283,1750571451599,-2290.69,0.00019178,2]
[366918284,1750571451610,-490.0,0.00019178,2]
[366918285,1750571451620,-490.0,0.00019178,2]
[366918286,1750571451631,-606.42,0.00019178,2]
[366918287,1750571451641,-2058.04,0.00019178,2]
[366918288,1750571451652,-782.88,0.00019178,2]
[366918289,1750571451663,-490.0,0.00019178,2]
[366918290,1750571451674,-490.0,0.00019178,2]
[366918291,1750571451686,-2611.41,0.00019178,2]
[366918292,1750571451697,-760.59,0.00019178,2]
[366918293,1750571451708,-500.0,0.00019178,2]
[366918294,1750571451718,-734.77,0.00019178,2]
[366918295,1750571451729,-490.0,0.00019178,2]
[366918296,1750571451740,-490.0,0.00019178,2]
[366918297,1750571451750,-867.51,0.00019178,2]
[366918298,1750571451760,-1951.07,0.00019178,2]
[366918299,1750571451771,-490.0,0.00019178,2]
[366918300,1750571451782,-490.0,0.00019178,2]
[366918301,1750571451793,-490.0,0.00019178,2]
[366918302,1750571451803,-1818.71,0.00019178,2]
[366918303,1750571451814,-1012.44,0.00019178,2]
[366918304,1750571451824,-500.0,0.00019178,2]
[366918305,1750571451835,-500.0,0.00019178,2]
[366918306,1750571451846,-150.0,0.00019178,2]
[366918307,1750571451857,-500.0,0.00019178,2]
[366918308,1750571451868,-151.0,0.00019178,2]
[366918309,1750571451879,-500.0,0.00019178,2]
[366918310,1750571451889,-153.845938,0.00019178,2]
[366918311,1750571451899,-201.9744846,0.00019178,2]
[366918312,1750571451910,-490.0,0.00019178,2]
[366918313,1750571451920,-519.38,0.00019178,2]
[366918314,1750571451931,-990.5,0.00019178,2]
[366918315,1750571451941,-490.0,0.00019178,2]
[366918316,1750571451951,-2447.55,0.00019178,2]
[366918317,1750571451962,-490.0,0.00019178,2]
[366918318,1750571451972,-491.44406328,0.00019178,2]
[366918319,1750571451982,-490.0,0.00019178,2]
[366918320,1750571451993,-473.27193782,0.00019178,2]
[366918321,1750571452003,-948.07,0.00019178,2]
[366918322,1750571452013,-490.0,0.00019178,2]
[366918323,1750571452024,-490.0,0.00019178,2]
[366918324,1750571452034,-490.0,0.00019178,2]
[366918325,1750571452044,-1995.06,0.00019178,2]
[366918326,1750571452055,-151.0,0.00019178,2]
[366918327,1750571452065,-6784.2,0.00019178,2]
[366918328,1750571452075,-2682.5,0.00019178,2]
[366918329,1750571452086,-490.0,0.00019178,2]
[366918330,1750571452096,-1043.16,0.00019178,2]
[366918331,1750571452107,-1096.33,0.00019178,2]
[366918332,1750571452118,-1216.7,0.00019178,2]
[366918333,1750571452128,-490.0,0.00019178,2]
[366918334,1750571452139,-490.0,0.00019178,2]
[366918335,1750571452151,-490.0,0.00019178,2]
[366918336,1750571452162,-1035.78,0.00019178,2]
[366918337,1750571452172,-1514.34,0.00019178,2]
[366918338,1750571452182,-490.0,0.00019178,2]
[366918339,1750571452192,-490.0,0.00019178,2]
[366918340,1750571452203,-490.0,0.00019178,2]
[366918341,1750571452214,-4198.69,0.00019178,2]
[366918342,1750571452226,-490.0,0.00019178,2]
[366918343,1750571452236,-490.0,0.00019178,2]
[366918344,1750571452247,-490.0,0.00019178,2]